bitfinex-derivatives/quotes_BTCF0:USTF0_20250117
["timestamp","ask_amount","ask_price","bid_price","bid_amount"]
[1737128153927,0.52129101,103940.0,103920.0,0.3608]
[1737128154126,0.16049101,103940.0,103920.0,0.3608]
[1737128155634,0.52129101,103940.0,103920.0,0.3608]
[1737128156229,0.16049101,103940.0,103920.0,0.3608]
[1737128156428,0.52129101,103940.0,103920.0,0.3608]
[1737128156628,0.16049101,103930.0,103920.0,0.3608]
[1737128157239,0.56938901,103940.0,103920.0,0.3608]
[1737128157441,0.52129101,103940.0,103920.0,0.3608]
[1737128157935,0.3608,103940.0,103920.0,0.3608]
[1737128158131,0.59039146,103950.0,103920.0,0.3608]
[1737128158534,0.22959146,103950.0,103920.0,0.3608]
[1737128159227,0.16049101,103940.0,103920.0,0.3608]
[1737128159930,0.16049101,103930.0,103920.0,0.3608]
[1737128160133,0.16049101,103930.0,103910.0,0.98454339]
[1737128160432,0.16049101,103920.0,103910.0,0.62374339]
[1737128160628,0.56939301,103930.0,103910.0,0.00144339]
[1737128161133,0.16049101,103920.0,103910.0,0.00144339]
[1737128161341,0.56939701,103920.0,103910.0,0.00144339]
[1737128161525,0.56939701,103920.0,103900.0,0.3807]
[1737128161836,0.16049101,103910.0,103900.0,0.3807]
[1737128162230,0.16049101,103910.0,103900.0,0.1]
[1737128162231,0.56940201,103910.0,103900.0,0.1]
[1737128162435,0.048122,103890.0,103870.0,0.80221161]
[1737128162639,0.16049101,103880.0,103870.0,1.12998571]
[1737128162828,0.16049101,103880.0,103870.0,0.83718571]
[1737128163036,0.16049101,103880.0,103870.0,0.47638571]
[1737128163534,0.3608,103880.0,103870.0,0.2856]
[1737128163736,0.52129101,103880.0,103860.0,0.3608]
[1737128163937,0.16049101,103880.0,103860.0,0.3608]
[1737128164736,0.52129101,103890.0,103860.0,0.56942401]
[1737128164937,0.75719101,103900.0,103870.0,0.56942001]
[1737128165232,0.75719101,103900.0,103880.0,0.3608]
[1737128165438,0.75719101,103900.0,103870.0,0.717529]
[1737128165641,0.16049101,103890.0,103870.0,1.004229]
[1737128165939,0.75719101,103900.0,103870.0,1.004229]
[1737128166136,0.75719101,103900.0,103870.0,1.16471701]
[1737128166137,0.16049101,103900.0,103870.0,1.16471701]
[1737128166340,0.16049101,103900.0,103870.0,1.004226]
[1737128166539,0.52129101,103900.0,103870.0,1.004226]
[1737128167135,0.16049101,103890.0,103870.0,1.004226]
[1737128167743,0.52129101,103890.0,103870.0,1.004226]
[1737128167939,0.52129101,103890.0,103870.0,0.9561]
[1737128168140,0.16049101,103880.0,103870.0,0.6694]
[1737128168442,0.16049101,103890.0,103870.0,0.6694]
[1737128168838,0.3608,103900.0,103870.0,0.87801801]
[1737128169036,0.16049101,103900.0,103870.0,0.717527]
[1737128169235,1.56677205,103910.0,103880.0,0.6481]
[1737128169437,0.16049101,103900.0,103880.0,0.6481]
[1737128169643,0.16049101,103900.0,103880.0,0.2873]
[1737128169838,0.16049101,103900.0,103880.0,0.6481]
[1737128170042,0.02805004,103910.0,103890.0,0.56941001]
[1737128170255,0.02805004,103910.0,103900.0,0.56940601]
[1737128170557,0.18854105,103910.0,103900.0,0.6461]
[1737128170853,0.18854105,103910.0,103890.0,0.408919]
[1737128170854,0.59745505,103910.0,103880.0,0.6481]
[1737128171056,0.52129101,103890.0,103870.0,0.6532]
[1737128171247,0.52129101,103880.0,103870.0,0.2924]
[1737128171448,0.72990902,103880.0,103860.0,0.28087192]
[1737128171654,0.52129101,103870.0,103860.0,0.16017286]
[1737128171853,0.048134,103860.0,103850.0,0.2555897]
[1737128172158,1.17471602,103860.0,103820.0,0.39322069]
[1737128172352,0.52129101,103830.0,103820.0,0.34971611]
[1737128172654,0.16049101,103840.0,103820.0,0.3608]
[1737128172852,0.00144536,103860.0,103850.0,0.048138]
[1737128173054,0.00144536,103860.0,103850.0,0.93022901]
[1737128173256,0.00144536,103860.0,103850.0,0.769738]
[1737128173556,0.16193637,103860.0,103830.0,0.408948]
[1737128173757,0.16193637,103860.0,103830.0,1.003648]
[1737128174064,0.52129101,103850.0,103830.0,0.294]
[1737128174364,0.54855036,103860.0,103840.0,0.3608]
[1737128174952,0.16049101,103850.0,103840.0,0.3608]
[1737128175363,0.16049101,103850.0,103830.0,0.702947]
[1737128175364,0.52129101,103850.0,103830.0,0.9638]
[1737128175663,0.16049101,103850.0,103840.0,2.0]
[1737128176162,0.3608,103850.0,103840.0,2.0]
[1737128176361,0.3608,103850.0,103840.0,4.0]
[1737128176556,0.52129101,103850.0,103840.0,4.0]
[1737128176754,0.52129101,103850.0,103840.0,6.0]
[1737128177157,0.54855036,103860.0,103840.0,6.0]
[1737128177463,0.16049101,103850.0,103840.0,6.0]
[1737128177662,0.52129101,103850.0,103840.0,6.0]
[1737128177865,0.3608,103850.0,103840.0,6.0]
[1737128178066,0.38805935,103860.0,103840.0,6.408943]
[1737128178266,0.38805935,103860.0,103840.0,6.52129101]
[1737128178267,0.02725935,103860.0,103840.0,6.52129101]
[1737128178568,0.02725935,103860.0,103850.0,0.408938]
[1737128179266,0.02725935,103860.0,103850.0,0.56942901]
[1737128179470,0.02725935,103860.0,103850.0,0.85822901]
[1737128180055,0.5821,103890.0,103850.0,0.85822901]
[1737128180056,0.5821,103890.0,103860.0,0.04813]
[1737128180262,0.0328632,103890.0,103870.0,0.408927]
[1737128180461,0.52129101,103900.0,103870.0,0.408927]
[1737128180964,0.68178202,103880.0,103850.0,0.408938]
[1737128181169,0.52129101,103870.0,103850.0,0.408938]
[1737128181368,0.16049101,103880.0,103850.0,0.408938]
[1737128181563,0.3608,103890.0,103860.0,0.52129101]
[1737128181770,0.3608,103890.0,103870.0,0.3608]
[1737128182062,0.5542809,103900.0,103870.0,0.408928]
[1737128182464,0.16049101,103890.0,103870.0,0.408928]
[1737128182665,0.52129101,103880.0,103850.0,0.408935]
[1737128182865,0.52129101,103870.0,103850.0,0.3608]
[1737128183164,0.16049101,103870.0,103850.0,0.3608]
[1737128183369,1.10059101,103880.0,103850.0,0.408937]
[1737128183859,0.16049101,103870.0,103850.0,0.3608]
[1737128184063,0.2913,103880.0,103860.0,0.3608]
[1737128184259,0.3608,103890.0,103860.0,0.52129101]
[1737128184465,0.52129101,103890.0,103860.0,0.85742201]
[1737128184870,0.80929101,103900.0,103870.0,0.3608]
[1737128185171,0.16049101,103890.0,103870.0,0.3608]
[1737128185968,0.03220697,103900.0,103880.0,0.52129101]
[1737128186273,0.00144435,103910.0,103890.0,0.56940701]
[1737128186466,0.00144435,103910.0,103900.0,0.3608]
[1737128187266,0.03460226,103910.0,103900.0,0.408915]
[1737128187572,0.00144435,103910.0,103900.0,0.3608]
[1737128187763,0.00144435,103910.0,103890.0,0.701319]
[1737128187962,0.00144435,103910.0,103900.0,0.3608]
[1737128188567,0.52273536,103910.0,103880.0,0.3608]
[1737128188774,0.16049101,103890.0,103870.0,0.652]
[1737128189280,0.52129101,103890.0,103870.0,0.652]
[1737128189584,1.43154636,103910.0,103880.0,0.3608]
[1737128189762,0.16049101,103900.0,103880.0,0.3608]
[1737128189963,0.52129101,103900.0,103870.0,0.652]
[1737128190158,0.16049101,103900.0,103870.0,0.700129]
[1737128190772,1.4163399,103910.0,103880.0,0.408925]
[1737128191373,0.16049101,103900.0,103880.0,0.3608]
[1737128191575,0.16049101,103900.0,103890.0,0.3608]
[1737128192071,0.39514889,103910.0,103890.0,0.3608]
[1737128192283,0.03434889,103910.0,103900.0,0.3608]
[1737128192473,0.03434889,103910.0,103900.0,0.52129101]
[1737128192777,0.17243121,103930.0,103920.0,0.048106]
[1737128192977,0.00144376,103950.0,103930.0,0.0481]
[1737128193162,0.00144376,103950.0,103940.0,0.52129101]
[1737128193366,0.00144376,103950.0,103940.0,0.93018801]
[1737128193877,0.16049101,103980.0,103950.0,0.048092]
[1737128194078,0.55304855,103980.0,103960.0,0.3608]
[1737128194464,0.03175754,103980.0,103960.0,0.56937701]
[1737128194664,1.484,103990.0,103960.0,0.56937701]
[1737128194665,0.5178,103990.0,103970.0,0.56937401]
[1737128194874,0.30113842,104000.0,103980.0,0.3608]
[1737128195181,0.1,104000.0,103980.0,0.408878]
[1737128195874,0.13173806,104000.0,103990.0,0.408874]
[1737128196074,0.00144337,104010.0,104000.0,0.048069]
[1737128196271,0.00144337,104010.0,104000.0,0.65536703]
[1737128196675,0.80843645,104050.0,104010.0,0.048062]
[1737128196973,0.24649803,104040.0,104020.0,0.3608]
[1737128197168,0.60729803,104040.0,104020.0,0.3608]
[1737128197377,0.3608,104040.0,104020.0,0.3608]
[1737128200782,0.6872412,104050.0,104020.0,0.3608]
[1737128201082,0.60729803,104040.0,104020.0,0.3608]
[1737128201276,0.24649803,104030.0,104010.0,0.3608]
[1737128201481,0.60729803,104020.0,104000.0,0.31473701]
[1737128201672,0.60729803,104020.0,103980.0,0.6008]
[1737128201673,0.60729803,104010.0,103980.0,0.6008]
[1737128201871,0.65536303,104010.0,103970.0,0.36224256]
[1737128202074,0.3608,103990.0,103970.0,0.36224256]
[1737128202275,0.60729803,103990.0,103970.0,0.36224256]
[1737128202481,0.3608,103990.0,103970.0,0.36224256]
[1737128203484,0.6498,104010.0,103980.0,0.3608]
[1737128203780,1.04999803,104020.0,104000.0,0.3608]
[1737128203983,1.45885903,104020.0,103990.0,0.3608]
[1737128204186,1.1973962,104020.0,103990.0,0.3608]
[1737128204390,1.49195423,104020.0,103990.0,0.3608]
[1737128204585,1.44389423,104020.0,103990.0,0.3608]
[1737128204886,0.3608,104010.0,103990.0,0.3608]
[1737128205090,1.44389423,104020.0,103990.0,0.3608]
[1737128205280,0.3608,104010.0,103990.0,0.3608]
[1737128205479,1.1973962,104020.0,103990.0,0.3608]
[1737128205682,0.3608,104010.0,103990.0,0.3608]
[1737128206188,0.60729803,104000.0,103980.0,0.3608]
[1737128206380,0.65536303,104010.0,103980.0,0.3608]
[1737128206574,0.65536303,104010.0,103970.0,0.3608]
[1737128206575,0.65536703,104000.0,103970.0,0.3608]
[1737128206781,0.65537803,103980.0,103950.0,0.3608]
[1737128206982,0.65537803,103980.0,103940.0,0.36224302]
[1737128206983,0.60729803,103970.0,103940.0,0.36224302]
[1737128207178,0.3608,103970.0,103940.0,0.36224302]
[1737128207782,0.6641,103980.0,103950.0,0.3608]
[1737128207979,0.6641,103980.0,103960.0,0.3608]
[1737128208185,0.95867703,103980.0,103950.0,0.3608]
[1737128208377,0.24649803,103970.0,103940.0,0.36224302]
[1737128208582,0.95867703,103980.0,103940.0,0.36224302]
[1737128208875,0.408883,103970.0,103940.0,0.36224302]
[1737128209394,0.3608,103970.0,103940.0,0.36224302]
[1737128209888,0.99101377,103980.0,103950.0,0.3608]
[1737128210077,0.69643674,103980.0,103950.0,0.3608]
[1737128210480,0.39313674,103980.0,103960.0,0.3608]
[1737128210679,0.03233674,103980.0,103970.0,0.3608]
[1737128210879,0.3608,104000.0,103970.0,0.3608]
[1737128211493,0.93980721,104010.0,103970.0,0.9517]
[1737128211694,0.3608,104000.0,103980.0,0.3608]
[1737128212696,0.6438,104010.0,103980.0,0.3608]
[1737128212877,0.3608,104010.0,103980.0,0.3608]
[1737128213083,1.1725,104020.0,103990.0,0.3608]
[1737128213483,1.20413278,104020.0,103990.0,0.3608]
[1737128213688,1.49869081,104020.0,103990.0,0.3608]
[1737128214292,0.60729803,104010.0,103980.0,0.3608]
[1737128214494,0.3608,104010.0,103980.0,0.3608]
[1737128215284,0.89139278,104020.0,103990.0,0.3608]
[1737128215487,0.54903278,104020.0,104000.0,0.3608]
[1737128216588,0.03163278,104020.0,104010.0,0.60729803]
[1737128216792,0.00144269,104050.0,104020.0,0.048059]
[1737128217095,0.36224269,104050.0,104030.0,0.3608]
[1737128217694,0.60874072,104050.0,104030.0,0.3608]
[1737128218297,0.00144269,104050.0,104040.0,0.3608]
[1737128219287,0.04211496,104050.0,104040.0,0.3608]
[1737128219487,0.00144269,104050.0,104040.0,0.3608]
[1737128219886,0.60874072,104050.0,104030.0,0.3608]
[1737128220101,0.00144269,104050.0,104030.0,0.3608]
[1737128220399,0.36224269,104050.0,104030.0,0.3608]
[1737128220690,0.36224269,104050.0,104020.0,0.3608]
[1737128220894,0.3608,104040.0,104020.0,0.3608]
[1737128221290,0.65534903,104040.0,104020.0,0.3608]
[1737128222485,0.65534903,104040.0,104010.0,0.9376]
[1737128222693,0.3608,104030.0,104010.0,0.5768]
[1737128222891,0.3608,104040.0,104020.0,0.3608]
[1737128223993,0.36224269,104050.0,104020.0,0.3608]
[1737128224202,0.36224269,104050.0,104020.0,0.60729803]
[1737128224391,0.3608,104050.0,104020.0,0.3608]
[1737128224995,0.0410564,104060.0,104040.0,0.3608]
[1737128225200,1.2951925,104070.0,104040.0,0.3608]
[1737128225393,1.12461803,104070.0,104040.0,0.3608]
[1737128225590,1.16457192,104070.0,104040.0,0.3608]
[1737128226595,0.91807389,104070.0,104050.0,0.3608]
[1737128228197,0.91807389,104070.0,104040.0,0.3608]
[1737128228996,0.91807389,104070.0,104040.0,0.6721]
[1737128229199,0.91807389,104070.0,104040.0,0.9842]
[1737128229401,0.96611089,104070.0,104040.0,1.032249]
[1737128229602,0.96611089,104070.0,104040.0,1.1919253]
[1737128230103,0.96611089,104070.0,104040.0,1.032249]
[1737128230403,0.91807389,104070.0,104050.0,0.5204763]
[1737128230700,1.07775019,104070.0,104050.0,0.36044324]
[1737128231097,1.23745019,104070.0,104050.0,0.36044324]
[1737128231401,1.07775019,104070.0,104050.0,0.36044324]
[1737128231701,0.1596763,104060.0,104040.0,0.9842]
[1737128232004,1.12578819,104070.0,104040.0,0.9842]
[1737128232187,0.60531189,104070.0,104040.0,0.9842]
[1737128232392,0.96611189,104070.0,104040.0,1.1438763]
[1737128233097,0.55727389,104070.0,104050.0,0.3608]
[1737128233298,1.07775019,104070.0,104050.0,0.3608]
[1737128233494,0.56043019,104070.0,104050.0,0.3608]
[1737128233700,0.03995389,104070.0,104050.0,0.3608]
[1737128233906,1.1643103,104080.0,104060.0,0.3608]
[1737128234195,1.1643103,104080.0,104050.0,0.3608]
[1737128234590,1.20518619,104080.0,104050.0,0.5204763]
[1737128235202,0.63667589,104080.0,104060.0,0.3608]
[1737128237008,0.79635219,104080.0,104060.0,0.3608]
[1737128238094,0.63667589,104080.0,104060.0,0.3608]
[1737128238307,1.15715219,104080.0,104060.0,0.3608]
[1737128240707,0.79635219,104080.0,104060.0,0.3608]
[1737128240895,1.15715219,104080.0,104060.0,0.3608]
[1737128242594,0.04087589,104080.0,104070.0,0.5204763]
[1737128242797,0.82964338,104100.0,104070.0,0.5204763]
[1737128243004,0.5204763,104090.0,104060.0,0.408837]
[1737128243213,0.5685083,104080.0,104060.0,0.3608]
[1737128243506,0.1596763,104080.0,104060.0,0.3608]
[1737128243704,0.2077093,104080.0,104050.0,0.5204763]
[1737128244009,0.2077093,104080.0,104060.0,0.3608]
[1737128244010,0.1596763,104080.0,104060.0,0.3608]
[1737128244209,0.3608,104090.0,104060.0,0.5204763]
[1737128244410,0.48070898,104100.0,104080.0,0.3608]
[1737128244709,0.5204763,104090.0,104070.0,0.3608]
[1737128245206,0.5204763,104090.0,104060.0,0.408838]
[1737128245503,0.5204763,104090.0,104070.0,0.3608]
[1737128245706,0.48070898,104100.0,104080.0,0.3608]
[1737128245901,0.15045821,104100.0,104090.0,0.5685033]
[1737128246098,0.17057447,104110.0,104100.0,0.048023]
[1737128246294,0.17057447,104110.0,104100.0,1.1336993]
[1737128246498,0.5426761,104130.0,104100.0,1.0856763]
[1737128246808,0.5426761,104130.0,104120.0,0.5684903]
[1737128247006,0.5426761,104130.0,104120.0,0.5204763]
[1737128247007,0.48020593,104130.0,104120.0,0.5204763]
[1737128247307,0.48020593,104130.0,104120.0,0.3608]
[1737128247603,0.04919503,104130.0,104120.0,0.3608]
[1737128247806,0.56992339,104140.0,104120.0,0.3608]
[1737128248504,0.00144109,104140.0,104120.0,0.5204763]
[1737128249095,0.00144109,104140.0,104120.0,0.5684903]
[1737128249299,0.00144109,104140.0,104120.0,0.5204763]
[1737128250310,0.05027577,104140.0,104120.0,0.5204763]
[1737128250609,0.00144109,104140.0,104120.0,0.5204763]
[1737128251408,0.00144109,104140.0,104130.0,0.1596763]
[1737128252206,0.00144109,104140.0,104120.0,0.5204763]
[1737128252507,0.52191739,104140.0,104120.0,0.3608]
[1737128252698,0.36224109,104140.0,104120.0,0.3608]
[1737128253105,0.36224109,104140.0,104110.0,0.5204763]
[1737128253303,0.36224109,104140.0,104110.0,0.5684943]
[1737128253601,0.41123592,104140.0,104110.0,0.5684923]
[1737128254315,0.1596763,104130.0,104110.0,0.3608]
[1737128254512,0.3608,104130.0,104110.0,0.5204763]
[1737128254808,0.40979483,104140.0,104120.0,0.1596763]
[1737128255009,0.04899483,104140.0,104120.0,0.1596763]
[1737128255203,0.87772,104150.0,104120.0,0.2076893]
[1737128255401,0.87772,104150.0,104120.0,0.5684893]
[1737128255713,0.3608,104140.0,104120.0,0.5684893]
[1737128256104,0.5204763,104140.0,104110.0,0.5684933]
[1737128256303,0.5204763,104140.0,104120.0,0.3608]
[1737128256504,0.3608,104140.0,104120.0,0.3608]
[1737128256918,0.3608,104140.0,104120.0,0.5204763]
[1737128257210,0.92572513,104150.0,104120.0,0.5204763]
[1737128257411,0.3608,104140.0,104120.0,0.5684893]
[1737128257807,0.92572513,104150.0,104120.0,0.5684893]
[1737128258315,0.56492513,104150.0,104140.0,0.1596763]
[1737128258909,0.04800513,104150.0,104140.0,0.1596763]
[1737128259214,0.6084,104160.0,104140.0,0.1596763]
[1737128259405,0.6084,104160.0,104130.0,1.1572823]
[1737128259606,0.9692,104160.0,104130.0,1.1572823]
[1737128259909,0.9692,104160.0,104130.0,0.3608]
[1737128259910,0.3608,104150.0,104130.0,0.3608]
[1737128260708,0.3608,104150.0,104130.0,0.5204763]
[1737128260909,0.3608,104150.0,104130.0,0.3608]
[1737128261113,0.5204763,104150.0,104130.0,0.3608]
[1737128261705,0.5204763,104150.0,104110.0,0.36224088]
[1737128261706,0.04801,104130.0,104110.0,0.36224088]
[1737128261905,0.5204763,104120.0,104090.0,0.52845016]
[1737128262106,0.3608,104110.0,104090.0,0.52845016]
[1737128262310,0.5204763,104110.0,104090.0,0.52845016]
[1737128262617,0.1596763,104100.0,104090.0,0.16765016]
[1737128262805,0.5204763,104100.0,104090.0,0.16765016]
[1737128263215,0.5204763,104100.0,104080.0,0.00144129]
[1737128263417,0.1596763,104090.0,104080.0,0.00144129]
[1737128264210,0.5204763,104090.0,104080.0,0.00144129]
[1737128264415,0.5685043,104090.0,104080.0,0.00144129]
[1737128264916,0.5204763,104090.0,104080.0,0.00144129]
[1737128265316,0.1596763,104090.0,104080.0,0.00144129]
[1737128265512,0.04735491,104090.0,104080.0,0.00144129]
[1737128265711,0.1596763,104090.0,104080.0,0.00144129]
[1737128265912,0.5204763,104090.0,104080.0,0.00144129]
[1737128266820,0.5204763,104090.0,104060.0,0.408841]
[1737128267119,0.5204763,104080.0,104060.0,0.408841]
[1737128267413,0.3608,104090.0,104070.0,0.3608]
[1737128267617,0.3608,104090.0,104070.0,0.5204763]
[1737128268115,0.1596763,104090.0,104070.0,0.3608]
[1737128268321,0.1596763,104090.0,104070.0,0.408834]
[1737128269119,0.5204763,104090.0,104070.0,0.408834]
[1737128269319,0.5204763,104090.0,104070.0,0.984634]
[1737128270015,0.5204763,104080.0,104070.0,0.2827]
[1737128270216,0.5685093,104080.0,104060.0,0.3608]
[1737128270523,0.1596763,104070.0,104050.0,1.16329516]
[1737128270721,0.5204763,104070.0,104050.0,1.16329516]
[1737128270907,0.5204763,104070.0,104050.0,1.11525016]
[1737128271311,0.5204763,104070.0,104050.0,0.9476]
[1737128271519,0.5204763,104070.0,104050.0,0.708246]
[1737128271923,0.5685093,104080.0,104050.0,0.708246]
[1737128272428,0.1596763,104080.0,104060.0,0.3608]
[1737128273513,0.5204763,104080.0,104060.0,0.3608]
[1737128273713,0.20677227,104080.0,104060.0,0.3608]
[1737128273923,0.56757227,104080.0,104060.0,0.3608]
[1737128274112,0.1596763,104070.0,104060.0,0.3608]
[1737128274415,0.56757227,104080.0,104060.0,0.3608]
[1737128274823,0.20677227,104080.0,104060.0,0.3608]
[1737128275014,0.56757227,104080.0,104060.0,0.3608]
[1737128276015,0.1596763,104070.0,104050.0,0.708244]
[1737128276817,0.56757227,104080.0,104060.0,0.408841]
[1737128277026,0.1596763,104070.0,104050.0,0.708243]
[1737128277728,0.04709597,104080.0,104060.0,0.408841]
[1737128278017,0.00144152,104100.0,104080.0,0.048032]
[1737128278220,0.00144152,104100.0,104090.0,0.5685033]
[1737128278420,0.00144152,104100.0,104090.0,0.8754033]
[1737128278723,0.04938522,104100.0,104090.0,0.715727]
[1737128278916,0.00144152,104100.0,104090.0,0.715727]
[1737128279725,0.6921317,104120.0,104100.0,0.04802]
[1737128279726,0.1716554,104120.0,104100.0,0.04802]
[1737128280022,0.1716554,104120.0,104100.0,0.5684963]
[1737128280212,0.8591893,104130.0,104100.0,0.69632]
[1737128280413,0.1596763,104120.0,104100.0,0.69632]
[1737128280617,0.1596763,104120.0,104100.0,0.6483]
[1737128280811,0.1596763,104110.0,104100.0,0.6483]
[1737128281213,0.5684913,104120.0,104100.0,0.6483]
[1737128281612,0.5204763,104110.0,104090.0,0.6677]
[1737128281812,0.5684953,104110.0,104090.0,0.6677]
[1737128282313,0.1596763,104100.0,104080.0,0.408829]
[1737128282510,0.3608,104110.0,104080.0,0.5685053]
[1737128282815,0.5684913,104120.0,104090.0,0.3608]
[1737128283014,0.1596763,104100.0,104090.0,0.3608]
[1737128283319,0.5685003,104100.0,104080.0,0.3608]
[1737128283519,0.2076953,104110.0,104080.0,0.048031]
[1737128283715,0.5204763,104100.0,104080.0,0.408831]
[1737128284125,0.5204763,104100.0,104080.0,0.3608]
[1737128284425,0.5685063,104090.0,104060.0,0.70848222]
[1737128284614,0.7557763,104090.0,104060.0,0.707041]
[1737128284812,0.5961,104090.0,104070.0,0.5685103]
[1737128285009,0.1596763,104100.0,104070.0,0.408834]
[1737128285224,0.5204763,104100.0,104070.0,0.408834]
[1737128285424,0.3608,104090.0,104070.0,0.3608]
[1737128285720,0.3608,104090.0,104070.0,0.048035]
[1737128285921,0.3608,104090.0,104070.0,0.408835]
[1737128286126,0.5204763,104090.0,104060.0,0.659]
[1737128286420,0.1596763,104080.0,104070.0,0.3608]
[1737128286621,0.5204763,104090.0,104060.0,0.707039]
[1737128286819,0.5204763,104090.0,104070.0,0.3608]
[1737128288018,0.3608,104080.0,104060.0,0.707039]
[1737128288223,0.3608,104080.0,104050.0,0.3608]
[1737128288224,0.5204763,104070.0,104050.0,0.3608]
[1737128288420,0.5204763,104070.0,104040.0,1.09583414]
[1737128288421,0.1596763,104060.0,104040.0,1.09583414]
[1737128288628,0.1596763,104050.0,104040.0,0.39278414]
[1737128288832,0.5204763,104050.0,104040.0,0.39278414]
[1737128289027,0.5204763,104050.0,104040.0,0.00144187]
[1737128289529,0.5204763,104050.0,104030.0,0.3608]
[1737128289727,0.1596763,104040.0,104030.0,0.3608]
[1737128289921,0.5204763,104040.0,104020.0,0.39134227]
[1737128290318,0.5204763,104040.0,104010.0,1.30248007]
[1737128290521,0.1596763,104040.0,104020.0,0.408859]
[1737128290726,1.4132763,104050.0,104020.0,0.408859]
[1737128290918,1.4132763,104050.0,104030.0,0.3608]
[1737128291129,0.5204763,104040.0,104020.0,0.3608]
[1737128291324,0.1596763,104030.0,104010.0,0.97795785]
[1737128291526,0.1596763,104030.0,104010.0,1.14560801]
[1737128291729,0.1596763,104020.0,104010.0,0.56950801]
[1737128292031,0.5204763,104040.0,104010.0,0.56950801]
[1737128292233,0.1596763,104030.0,104010.0,0.56950801]
[1737128292724,0.1596763,104020.0,104010.0,0.56950801]
[1737128292929,0.1596763,104020.0,104000.0,0.32369211]
[1737128292930,0.5685363,104020.0,104000.0,0.32369211]
[1737128293132,0.5685363,104020.0,104000.0,0.03206382]
[1737128293133,1.5286966,104010.0,104000.0,0.03206382]
[1737128293325,1.8387966,104010.0,103990.0,0.27170963]
[1737128293519,0.1596763,104000.0,103990.0,0.2454051]
[1737128293720,0.5204763,104000.0,103990.0,0.2454051]
[1737128294026,1.6310563,104010.0,103990.0,0.2454051]
[1737128294330,0.3608,104020.0,104000.0,0.3608]
[1737128294528,0.6921317,104030.0,104010.0,0.3608]
[1737128294721,0.73338335,104030.0,104000.0,0.3608]
[1737128294927,0.5204763,104020.0,104000.0,0.3608]
[1737128295129,0.1596763,104010.0,104000.0,0.3608]
[1737128295325,0.5204763,104010.0,103980.0,1.2372]
[1737128295528,0.1596763,104000.0,103980.0,1.2372]
[1737128295936,0.5204763,104010.0,103990.0,0.3608]
[1737128296121,0.5204763,104020.0,104000.0,0.3608]
[1737128296327,0.40205165,104030.0,104010.0,0.1596763]
[1737128296537,0.56172795,104030.0,104000.0,0.5204763]
[1737128296730,0.5204763,104020.0,104000.0,0.3608]
[1737128297034,0.1596763,104020.0,104000.0,0.3608]
[1737128297219,0.5204763,104020.0,104000.0,0.3608]
[1737128297425,0.1596763,104010.0,104000.0,0.3608]
[1737128297928,0.5204763,104010.0,103980.0,1.3968763]
[1737128298133,0.3608,104010.0,103990.0,0.3608]
[1737128298328,0.3608,104010.0,103980.0,1.3968763]
[1737128298534,0.3608,104010.0,103990.0,0.5204763]
[1737128298735,0.3608,104020.0,104000.0,0.5204763]
[1737128298935,0.04125165,104030.0,104010.0,0.5204763]
[1737128299136,0.80848,104040.0,104020.0,0.5204763]
[1737128299336,0.51688,104040.0,104030.0,0.1596763]
[1737128299736,0.51688,104040.0,104020.0,0.5204763]
[1737128300036,0.51688,104040.0,104020.0,0.3608]
[1737128300635,0.55052159,104040.0,104020.0,0.3608]
[1737128301137,0.71019789,104040.0,104020.0,0.3608]
[1737128301443,1.07099789,104040.0,104020.0,0.3608]
[1737128301640,0.5204763,104030.0,103990.0,0.3608]
[1737128301935,0.3608,104010.0,103990.0,0.3608]
[1737128302340,0.3608,104010.0,103990.0,0.5204763]
[1737128302634,1.2492,104030.0,104000.0,0.5204763]
[1737128302838,0.6562,104030.0,104010.0,0.1596763]
[1737128303038,0.8158763,104030.0,104000.0,0.5204763]
[1737128303437,0.91132159,104040.0,104020.0,0.3608]
[1737128303637,0.55052159,104040.0,104020.0,0.3608]
[1737128303836,0.55052159,104040.0,104020.0,0.5204763]
[1737128304440,0.5204763,104030.0,104000.0,0.3608]
[1737128304638,0.5204763,104020.0,104000.0,0.3608]
[1737128304942,0.3608,104020.0,104000.0,0.3608]
[1737128305337,0.3608,104020.0,103990.0,0.6429]
[1737128305338,0.5204763,104020.0,103990.0,0.6429]
[1737128306337,0.3608,104020.0,104000.0,0.5204763]
[1737128306841,0.8040763,104030.0,104000.0,0.5204763]
[1737128307047,0.6444,104030.0,104000.0,0.5204763]
[1737128307345,0.8040763,104030.0,103990.0,0.8025763]
[1737128307547,0.5204763,104020.0,103990.0,0.6429]
[1737128307735,0.1596763,104020.0,103990.0,0.6429]
[1737128308034,0.1596763,104020.0,104000.0,0.3608]
[1737128308530,0.8040763,104030.0,104000.0,0.3608]
[1737128308734,0.1596763,104020.0,104000.0,0.3608]
[1737128309037,1.07099789,104040.0,104010.0,0.3608]
[1737128309237,0.91132159,104040.0,104010.0,0.5204763]
[1737128309443,1.07099789,104040.0,104010.0,0.9275]
[1737128309641,1.07099789,104040.0,104010.0,0.5667]
[1737128309642,0.1596763,104030.0,104010.0,0.5667]
[1737128309839,0.1596763,104020.0,104010.0,0.2834]
[1737128310036,0.1596763,104020.0,103990.0,0.9262]
[1737128310037,0.5204763,104020.0,103990.0,0.9262]
[1737128310237,0.1596763,104010.0,103990.0,0.9262]
[1737128310540,0.1596763,104010.0,103990.0,0.5654]
[1737128310744,0.1596763,104010.0,103990.0,0.9262]
[1737128311846,0.1596763,104000.0,103990.0,0.9262]
[1737128312047,0.5204763,104010.0,103990.0,0.9262]
[1737128312446,0.3608,104020.0,103990.0,1.0858763]
[1737128312746,0.39483696,104020.0,104000.0,0.3608]
[1737128313343,0.55451326,104020.0,103990.0,0.9262]
[1737128313549,0.1596763,104010.0,103990.0,0.9262]
[1737128313746,0.55451326,104020.0,103990.0,0.9262]
[1737128313947,0.03403696,104020.0,104010.0,0.3608]
[1737128314251,0.1716554,104050.0,104010.0,0.8204763]
[1737128314442,0.1716554,104050.0,104040.0,0.3608]
[1737128314443,0.3313317,104050.0,104040.0,0.3608]
[1737128314642,0.3313317,104050.0,104030.0,0.3608]
[1737128315237,0.1596763,104050.0,104030.0,0.3608]
[1737128315444,0.1596763,104060.0,104030.0,0.3608]
[1737128315743,0.1596763,104050.0,104030.0,0.3608]
[1737128316244,0.3608,104060.0,104030.0,0.3608]
[1737128316245,0.1596763,104040.0,104030.0,0.3608]
[1737128316840,0.1596763,104040.0,104020.0,0.6645]
[1737128317040,0.1596763,104030.0,104020.0,0.3608]